[Event "Friendship Match AZE-TUR"]
[Site "Mustafa Kemal Atatürk"]
[Date "2020.08.08"]
[Round "1"]
[White "Silacglr04"]
[Black "Gul91"]
[Result "0-1"]
[WhiteElo "1620"]
[BlackElo "1620"]
[Annotator "NA"]
[PlyCount "112"]
[EventDate "2020.08.08"]
[EventType "team-tourn (rapid)"]
[TimeControl "900+5"]

1. e4 {[%emt 0:00:05]} e6 {[%emt 0:00:03]} 2. d4 {[%emt 0:00:07]} d5 {[%emt 0:00:03]} 3. Nd2 {[%emt 0:00:01]} a6 {[%emt 0:00:02]} 4. Ngf3 {[%emt 0:00:02]} c5 {[%emt 0:00:04]} 5. exd5 {[%emt 0:00:03]} exd5 {[%emt 0:00:02]} 6. dxc5 {[%emt 0:00:02]} Bxc5 {[%emt 0:00:05]} 7. Nb3 {[%emt 0:00:03]} Bb6 {[%emt 0:00:03]} 8. Bd3 {[%emt 0:00:02]} Qe7+ {[%emt 0:00:03]} 9. Qe2 {[%emt 0:00:02]} Bg4 {[%emt 0:00:02]} 10. O-O {[%emt 0:00:17]} Qxe2 {[%emt 0:00:10]} 11. Bxe2 {[%emt 0:00:02]} Nf6 {[%emt 0:00:14]} 12. h3 {[%emt 0:00:34]} Bh5 {[%emt 0:01:38]} 13. Bg5 {[%emt 0:03:08]} Ne4 {[%emt 0:00:46]} 14. Bf4 {[%emt 0:00:14]} Nc6 {[%emt 0:00:28]} 15. c4 {[%emt 0:03:05]} dxc4 {[%emt 0:02:02]} 16. Bxc4 {[%emt 0:00:04]} O-O {[%emt 0:00:16]} 17. Rae1 {[%emt 0:01:09]} Rfe8 {[%emt 0:01:19]} 18. g4 {[%emt 0:03:46]} Bg6 {[%emt 0:00:05]} 19. Nh4 {[%emt 0:00:28]} Nxf2 {[%emt 0:02:06]} 20. Rxe8+ {[%emt 0:00:52]} Rxe8 {[%emt 0:00:03]} 21. Nxg6 {[%emt 0:01:20]} hxg6 {[%emt 0:00:20]} 22. Bxf7+ {[%emt 0:01:02]} Kxf7 {[%emt 0:00:04]} 23. Bg3 {[%emt 0:00:02]} Re2 {[%emt 0:01:29]} 24. Bxf2 {[%emt 0:00:01]} Rxf2 {[%emt 0:01:08]} 25. Rxf2+ {[%emt 0:00:00]} Ke6 {[%emt 0:00:01]} 26. Kf1 {[%emt 0:00:07]} Bxf2 {[%emt 0:00:02]} 27. Kxf2 {[%emt 0:00:00]} Kd5 {[%emt 0:00:13]} 28. Ke3 {[%emt 0:00:07]} g5 {[%emt 0:00:05]} 29. Nd2 {[%emt 0:00:17]} Nd4 {[%emt 0:00:38]} 30. Ne4 {[%emt 0:00:20]} Ne6 {[%emt 0:00:02]} 31. Nc3+ {[%emt 0:00:02]} Ke5 {[%emt 0:00:03]} 32. Ne4 {[%emt 0:00:03]} a5 {[%emt 0:00:09]} 33. Nf2 {[%emt 0:00:18]} Nf4 {[%emt 0:00:13]} 34. Kf3 {[%emt 0:00:02]} b5 {[%emt 0:00:14]} 35. Kg3 {[%emt 0:00:07]} b4 {[%emt 0:00:26]} 36. Kf3 {[%emt 0:00:01]} a4 {[%emt 0:00:09]} 37. Ke3 {[%emt 0:00:03]} Kd5 {[%emt 0:01:21]} 38. h4 {[%emt 0:00:03]} Ng2+ {[%emt 0:00:04]} 39. Kf3 {[%emt 0:00:03]} Nxh4+ {[%emt 0:00:05]} 40. Ke3 {[%emt 0:00:01]} Ng2+ {[%emt 0:00:03]} 41. Kf3 {[%emt 0:00:04]} Nf4 {[%emt 0:00:10]} 42. Ke3 {[%emt 0:00:05]} Ke5 {[%emt 0:00:23]} 43. Ne4 {[%emt 0:00:14]} Ne6 {[%emt 0:00:10]} 44. Nf2 {[%emt 0:00:08]} Nc5 {[%emt 0:00:06]} 45. Nh3 {[%emt 0:00:04]} Ne4 {[%emt 0:00:04]} 46. Ng1 {[%emt 0:00:03]} Kd5 {[%emt 0:00:02]} 47. Nf3 {[%emt 0:00:01]} a3 {[%emt 0:00:04]} 48. bxa3 {[%emt 0:00:08]} bxa3 {[%emt 0:00:00]} 49. Ne1 {[%emt 0:00:10]} Nf6 {[%emt 0:00:18]} 50. Nc2 {[%emt 0:00:02]} Nxg4+ {[%emt 0:00:01]} 51. Ke2 {[%emt 0:00:03]} Ne5 {[%emt 0:00:08]} 52. Nxa3 {[%emt 0:00:01] Silacglr04 beraberlik teklif ediyor} Ke4 {[%emt 0:00:09]} 53. Nb5 {[%emt 0:00:04]} g4 {[%emt 0:00:06]} 54. Nc3+ {[%emt 0:00:09]} Kd4 {[%emt 0:00:06]} 55. Nd1 {[%emt 0:00:10]} g3 {[%emt 0:00:16]} 56. Ne3 {[%emt 0:00:07]} Ke4 {[%emt 0:00:05] Zaman (Lag: Av=0.63s, max=2.1s)} 0-1

[Event "Friendship Match AZE-TUR"]
[Site "Mustafa Kemal Atatürk"]
[Date "2020.08.08"]
[Round "2"]
[White "Gul91"]
[Black "Silacglr04"]
[Result "1/2-1/2"]
[WhiteElo "1620"]
[BlackElo "1620"]
[Annotator "NA"]
[PlyCount "57"]
[EventDate "2020.08.08"]
[EventType "team-tourn (rapid)"]
[TimeControl "900+5"]

1. e4 {[%emt 0:00:02]} c5 {[%emt 0:00:03]} 2. Nf3 {[%emt 0:00:03]} e6 {[%emt 0:00:01]} 3. b3 {[%emt 0:00:06]} b6 {[%emt 0:00:01]} 4. d4 {[%emt 0:00:42]} cxd4 {[%emt 0:01:00]} 5. Nxd4 {[%emt 0:00:03]} Bb7 {[%emt 0:00:03]} 6. Bd3 {[%emt 0:00:07]} Bc5 {[%emt 0:01:26]} 7. c3 {[%emt 0:00:33]} Nf6 {[%emt 0:00:15]} 8. Qe2 {[%emt 0:00:25]} O-O {[%emt 0:02:11]} 9. O-O {[%emt 0:01:44]} e5 {[%emt 0:01:47]} 10. Nf5 {[%emt 0:00:31]} d5 {[%emt 0:00:25]} 11. Nd2 {[%emt 0:02:01]} Re8 {[%emt 0:01:42]} 12. c4 {[%emt 0:01:02]} dxc4 {[%emt 0:03:23]} 13. Nxc4 {[%emt 0:00:44]} Nc6 {[%emt 0:00:17]} 14. Bg5 {[%emt 0:01:15]} Nd4 {[%emt 0:01:13]} 15. Nxd4 {[%emt 0:00:06]} exd4 {[%emt 0:00:00]} 16. Qf3 {[%emt 0:01:48]} Be7 {[%emt 0:00:44]} 17. Bxf6 {[%emt 0:00:51]} Bxf6 {[%emt 0:00:03]} 18. Rfe1 {[%emt 0:00:12]} Rc8 {[%emt 0:01:11]} 19. a4 {[%emt 0:02:00]} a6 {[%emt 0:00:41]} 20. Qh3 {[%emt 0:00:04]} g6 {[%emt 0:00:12]} 21. e5 {[%emt 0:00:07]} Be7 {[%emt 0:00:02]} 22. e6 {[%emt 0:00:04]} f6 {[%emt 0:00:03]} 23. Bxg6 {[%emt 0:01:19]} hxg6 {[%emt 0:00:00]} 24. Qh6 {[%emt 0:00:01]} Rc5 {[%emt 0:00:01]} 25. Qxg6+ {[%emt 0:00:03]} Kh8 {[%emt 0:00:02]} 26. Qh6+ {[%emt 0:00:30]} Kg8 {[%emt 0:00:01]} 27. Qg6+ {[%emt 0:00:31]} Kh8 {[%emt 0:00:01]} 28. Qh6+ {[%emt 0:00:02]} Kg8 {[%emt 0:00:01]} 29. Qg6+ {[%emt 0:00:00] (Lag: Av=0.39s, max=0.6s)} 1/2-1/2